[Event "Titled Tuesday Blitz August 09 Early 2022"]
[White "Parpiev, Isaak"]
[Black "Seemann, Jakub"]
[WhiteFideId "34281576"]
[BlackFideId "21874697"]
[WhiteElo "2049"]
[BlackElo "2064"]
[Result "1-0"]
[Round "07"]
[TimeControl "180+1"]
[Date "2022.08.09"]
[WhiteClock "0:01:25"]
[BlackClock "0:01:16"]

1. e4 {[%clk 0:03:00]}  c6 {[%clk 0:02:58]} 2. d4 {[%clk 0:03:01]}  d5 {[%clk 0:02:58]} 3. exd5 {[%clk 0:03:01]}  cxd5 {[%clk 0:02:58]} 4. c4 {[%clk 0:03:02]}  Nf6 {[%clk 0:02:58]} 5. Nc3 {[%clk 0:03:02]}  e6 {[%clk 0:02:57]} 6. Nf3 {[%clk 0:03:02]}  Nc6 {[%clk 0:02:57]} 7. c5 {[%clk 0:03:02]}  Be7 {[%clk 0:02:54]} 8. Bb5 {[%clk 0:03:01]}  O-O {[%clk 0:02:53]} 9. Bxc6 {[%clk 0:03:01]}  bxc6 {[%clk 0:02:50]} 10. Ne5 {[%clk 0:03:01]}  Bb7 {[%clk 0:02:46]} 11. Qa4 {[%clk 0:03:00]}  Qc8 {[%clk 0:02:42]} 12. O-O {[%clk 0:03:00]}  Nd7 {[%clk 0:02:42]} 13. Nxd7 {[%clk 0:02:42]}  Qxd7 {[%clk 0:02:43]} 14. Bf4 {[%clk 0:02:42]}  a5 {[%clk 0:02:42]} 15. Rfe1 {[%clk 0:02:38]}  f6 {[%clk 0:02:35]} 16. Qc2 {[%clk 0:02:29]}  g6 {[%clk 0:02:33]} 17. Na4 {[%clk 0:02:27]}  e5 {[%clk 0:02:06]} 18. dxe5 {[%clk 0:02:22]}  fxe5 {[%clk 0:02:07]} 19. Bxe5 {[%clk 0:02:21]}  Rae8 {[%clk 0:02:02]} 20. Nb6 {[%clk 0:02:20]}  Qg4 {[%clk 0:02:02]} 21. h3 {[%clk 0:02:18]}  Qg5 {[%clk 0:01:42]} 22. Bd6 {[%clk 0:01:38]}  Bxd6 {[%clk 0:01:17]} 23. cxd6 {[%clk 0:01:36]}  Rxe1+ {[%clk 0:01:18]} 24. Rxe1 {[%clk 0:01:36]}  Qf4 {[%clk 0:01:19]} 25. d7 {[%clk 0:01:32]}  Qd6 {[%clk 0:01:14]} 26. Re8 {[%clk 0:01:29]}  c5 {[%clk 0:01:14]} 27. d8=Q {[%clk 0:01:27]}  Qxd8 {[%clk 0:01:14]} 28. Rxd8 {[%clk 0:01:27]}  Rxd8 {[%clk 0:01:15]} 29. Qxc5 {[%clk 0:01:27]}  d4 {[%clk 0:01:16]} 30. Qc7 {[%clk 0:01:25]}  Re8 {[%clk 0:01:15]} 31. Qxb7 {[%clk 0:01:25]}  d3 {[%clk 0:01:16]} 32. Qd5+ {[%clk 0:01:25]} 1-0


[Site "https://www.chess.com"]

[Event "Titled Tuesday Blitz August 09 Early 2022"]
[White "Pein, Jonathan"]
[Black "Todorovic, Bojan"]
[WhiteFideId "417092"]
[BlackFideId "917087"]
[WhiteElo "2140"]
[BlackElo "2266"]
[Result "0-1"]
[Round "07"]
[TimeControl "180+1"]
[Date "2022.08.09"]
[WhiteClock "0:01:02"]
[BlackClock "0:00:12"]

1. Nf3 {[%clk 0:02:59]}  Nf6 {[%clk 0:02:59]} 2. g3 {[%clk 0:02:59]}  g6 {[%clk 0:02:58]} 3. Bg2 {[%clk 0:03:00]}  Bg7 {[%clk 0:02:58]} 4. O-O {[%clk 0:03:01]}  O-O {[%clk 0:02:58]} 5. c4 {[%clk 0:03:02]}  d6 {[%clk 0:02:57]} 6. Nc3 {[%clk 0:03:02]}  c6 {[%clk 0:02:56]} 7. d4 {[%clk 0:03:01]}  Qa5 {[%clk 0:02:55]} 8. e4 {[%clk 0:02:56]}  Qh5 {[%clk 0:02:54]} 9. Nh4 {[%clk 0:02:43]}  Bg4 {[%clk 0:02:32]} 10. f3 {[%clk 0:02:25]}  Bd7 {[%clk 0:02:31]} 11. Be3 {[%clk 0:02:20]}  e5 {[%clk 0:02:15]} 12. h3 {[%clk 0:02:12]}  exd4 {[%clk 0:02:01]} 13. Bxd4 {[%clk 0:02:12]}  Be6 {[%clk 0:01:47]} 14. b3 {[%clk 0:02:04]}  Nbd7 {[%clk 0:01:45]} 15. f4 {[%clk 0:02:00]}  Nc5 {[%clk 0:01:41]} 16. Qxh5 {[%clk 0:01:59]}  Nxh5 {[%clk 0:01:40]} 17. Bxg7 {[%clk 0:02:00]}  Kxg7 {[%clk 0:01:40]} 18. Rad1 {[%clk 0:01:55]}  Nxg3 {[%clk 0:01:38]} 19. Rfe1 {[%clk 0:01:53]}  Rad8 {[%clk 0:01:33]} 20. Kf2 {[%clk 0:01:52]}  Nh5 {[%clk 0:01:32]} 21. f5 {[%clk 0:01:53]}  Bc8 {[%clk 0:01:31]} 22. Bf3 {[%clk 0:01:48]}  Nf6 {[%clk 0:01:30]} 23. Rd2 {[%clk 0:01:47]}  Rfe8 {[%clk 0:01:25]} 24. b4 {[%clk 0:01:46]}  Ncd7 {[%clk 0:01:13]} 25. Rxd6 {[%clk 0:01:42]}  Ne5 {[%clk 0:01:13]} 26. Rxd8 {[%clk 0:01:25]}  Rxd8 {[%clk 0:01:11]} 27. Be2 {[%clk 0:01:26]}  Nd3+ {[%clk 0:01:04]} 28. Bxd3 {[%clk 0:01:25]}  Rxd3 {[%clk 0:01:04]} 29. Re3 {[%clk 0:01:25]}  Rxc3 {[%clk 0:01:04]} 30. e5 {[%clk 0:01:12]}  Rxe3 {[%clk 0:00:40]} 31. exf6+ {[%clk 0:01:12]}  Kxf6 {[%clk 0:00:41]} 32. Kxe3 {[%clk 0:01:13]}  Bxf5 {[%clk 0:00:40]} 33. Nf3 {[%clk 0:01:13]}  Bxh3 {[%clk 0:00:39]} 34. c5 {[%clk 0:01:11]}  Be6 {[%clk 0:00:35]} 35. a4 {[%clk 0:01:09]}  g5 {[%clk 0:00:33]} 36. Nd4 {[%clk 0:01:08]}  h5 {[%clk 0:00:30]} 37. b5 {[%clk 0:01:09]}  Bd5 {[%clk 0:00:23]} 38. b6 {[%clk 0:01:07]}  axb6 {[%clk 0:00:17]} 39. cxb6 {[%clk 0:01:08]}  Ke5 {[%clk 0:00:14]} 40. a5 {[%clk 0:01:09]}  c5 {[%clk 0:00:14]} 41. Nb3 {[%clk 0:01:04]}  Kd6 {[%clk 0:00:12]} 42. Nd2 {[%clk 0:01:02]}  h4 {[%clk 0:00:12]} 0-1


[Site "https://www.chess.com"]

[Event "Titled Tuesday Blitz August 09 Early 2022"]
[White "Ramirez Vido, Robert Yorisan"]
[Black "Kazancev, Valerij M"]
[WhiteFideId "3513823"]
[BlackFideId "4179609"]
[WhiteElo "2420"]
[BlackElo "2560"]
[Result "1-0"]
[Round "07"]
[TimeControl "180+1"]
[Date "2022.08.09"]
[WhiteClock "0:00:07"]
[BlackClock "0:00:19"]

1. f4 {[%clk 0:02:53]}  g6 {[%clk 0:02:58]} 2. Nf3 {[%clk 0:02:53]}  Bg7 {[%clk 0:02:59]} 3. e3 {[%clk 0:02:53]}  c5 {[%clk 0:02:58]} 4. Be2 {[%clk 0:02:53]}  Nc6 {[%clk 0:02:58]} 5. O-O {[%clk 0:02:52]}  e6 {[%clk 0:02:58]} 6. Nc3 {[%clk 0:02:41]}  Nge7 {[%clk 0:02:59]} 7. d3 {[%clk 0:02:39]}  O-O {[%clk 0:02:56]} 8. Bd2 {[%clk 0:02:39]}  Rb8 {[%clk 0:02:55]} 9. a4 {[%clk 0:02:38]}  a6 {[%clk 0:02:55]} 10. Qe1 {[%clk 0:02:37]}  d5 {[%clk 0:02:54]} 11. Qh4 {[%clk 0:02:31]}  h6 {[%clk 0:02:53]} 12. Kh1 {[%clk 0:02:28]}  Nf5 {[%clk 0:02:53]} 13. Qxd8 {[%clk 0:02:26]}  Rxd8 {[%clk 0:02:54]} 14. g4 {[%clk 0:02:20]}  Nd6 {[%clk 0:02:48]} 15. Kg2 {[%clk 0:02:06]}  b5 {[%clk 0:02:41]} 16. axb5 {[%clk 0:02:06]}  axb5 {[%clk 0:02:42]} 17. Kg3 {[%clk 0:01:58]}  f5 {[%clk 0:02:27]} 18. g5 {[%clk 0:01:55]}  hxg5 {[%clk 0:02:23]} 19. Nxg5 {[%clk 0:01:54]}  c4 {[%clk 0:02:16]} 20. Bf3 {[%clk 0:01:43]}  Nb4 {[%clk 0:02:10]} 21. dxc4 {[%clk 0:01:20]}  bxc4 {[%clk 0:02:04]} 22. Rfc1 {[%clk 0:01:12]}  Ne4+ {[%clk 0:01:53]} 23. Bxe4 {[%clk 0:01:04]}  fxe4 {[%clk 0:01:53]} 24. Ra7 {[%clk 0:00:56]}  e5 {[%clk 0:01:51]} 25. Ne2 {[%clk 0:00:48]}  Bf5 {[%clk 0:01:40]} 26. Bc3 {[%clk 0:00:38]}  d4 {[%clk 0:01:36]} 27. exd4 {[%clk 0:00:34]}  exf4+ {[%clk 0:00:58]} 28. Nxf4 {[%clk 0:00:29]}  Bxd4 {[%clk 0:00:56]} 29. Bxd4 {[%clk 0:00:19]}  Rxd4 {[%clk 0:00:56]} 30. c3 {[%clk 0:00:19]}  Nd3 {[%clk 0:00:56]} 31. cxd4 {[%clk 0:00:18]}  Nxc1 {[%clk 0:00:56]} 32. Rc7 {[%clk 0:00:17]}  Rxb2 {[%clk 0:00:54]} 33. Rxc4 {[%clk 0:00:17]}  Rb3+ {[%clk 0:00:47]} 34. Kh4 {[%clk 0:00:14]}  Nd3 {[%clk 0:00:45]} 35. Nd5 {[%clk 0:00:07]}  Rb2 {[%clk 0:00:29]} 36. Rc7 {[%clk 0:00:06]}  Rxh2+ {[%clk 0:00:20]} 37. Kg3 {[%clk 0:00:07]}  Rh5 {[%clk 0:00:19]} 38. Nf6+ {[%clk 0:00:07]}  Kf8 {[%clk 0:00:19]} 39. Rf7# {[%clk 0:00:07]} 1-0


[Site "https://www.chess.com"]

[Event "Titled Tuesday Blitz August 09 Early 2022"]
[White "Rangel, Daniel"]
[Black "Broca Jimenez, Fernando"]
[WhiteFideId "2124475"]
[BlackFideId "5104742"]
[WhiteElo "2225"]
[BlackElo "2062"]
[Result "1-0"]
[Round "07"]
[TimeControl "180+1"]
[Date "2022.08.09"]
[WhiteClock "0:00:27"]
[BlackClock "0:00:11"]

1. e4 {[%clk 0:02:52]}  c5 {[%clk 0:02:58]} 2. Nf3 {[%clk 0:02:43]}  g6 {[%clk 0:02:57]} 3. Nc3 {[%clk 0:02:39]}  Nc6 {[%clk 0:02:56]} 4. h4 {[%clk 0:02:36]}  Nf6 {[%clk 0:02:52]} 5. h5 {[%clk 0:02:33]}  Nxh5 {[%clk 0:02:51]} 6. Rxh5 {[%clk 0:02:32]}  gxh5 {[%clk 0:02:52]} 7. Ng5 {[%clk 0:02:31]}  Bh6 {[%clk 0:02:15]} 8. Nxf7 {[%clk 0:02:04]}  Kxf7 {[%clk 0:02:15]} 9. Qxh5+ {[%clk 0:02:05]}  Kg7 {[%clk 0:02:14]} 10. Bc4 {[%clk 0:01:45]}  e6 {[%clk 0:01:58]} 11. d3 {[%clk 0:01:39]}  Bxc1 {[%clk 0:01:30]} 12. Rxc1 {[%clk 0:01:39]}  Qf6 {[%clk 0:01:31]} 13. g3 {[%clk 0:01:29]}  a6 {[%clk 0:00:47]} 14. Ne2 {[%clk 0:01:24]}  Ne5 {[%clk 0:00:43]} 15. Bb3 {[%clk 0:01:09]}  Nf3+ {[%clk 0:00:40]} 16. Kf1 {[%clk 0:01:07]}  e5 {[%clk 0:00:25]} 17. Kg2 {[%clk 0:01:03]}  Nd4 {[%clk 0:00:20]} 18. Nxd4 {[%clk 0:00:47]}  cxd4 {[%clk 0:00:21]} 19. Rf1 {[%clk 0:00:45]}  d6 {[%clk 0:00:21]} 20. f4 {[%clk 0:00:43]}  Rf8 {[%clk 0:00:20]} 21. f5 {[%clk 0:00:38]}  h6 {[%clk 0:00:19]} 22. Rh1 {[%clk 0:00:32]}  Bd7 {[%clk 0:00:19]} 23. Rh4 {[%clk 0:00:27]}  Qg5 {[%clk 0:00:19]} 24. Rg4 {[%clk 0:00:27]}  Qxg4 {[%clk 0:00:10]} 25. Qxg4+ {[%clk 0:00:27]}  Kh8 {[%clk 0:00:11]} 26. Qg6 {[%clk 0:00:27]} 1-0


[Site "https://www.chess.com"]

[Event "Titled Tuesday Blitz August 09 Early 2022"]
[White "Remolar Gallen, Jose"]
[Black "Can, Melih Kaan"]
[WhiteFideId "2215187"]
[BlackFideId "6317383"]
[WhiteElo "2205"]
[BlackElo "2049"]
[Result "1-0"]
[Round "07"]
[TimeControl "180+1"]
[Date "2022.08.09"]
[WhiteClock "0:00:55"]
[BlackClock "0:01:09"]

1. d4 {[%clk 0:03:00]}  Nf6 {[%clk 0:02:59]} 2. c4 {[%clk 0:02:56]}  c5 {[%clk 0:02:59]} 3. d5 {[%clk 0:02:56]}  e6 {[%clk 0:02:58]} 4. Nc3 {[%clk 0:02:55]}  exd5 {[%clk 0:02:59]} 5. cxd5 {[%clk 0:02:56]}  d6 {[%clk 0:03:00]} 6. e4 {[%clk 0:02:56]}  g6 {[%clk 0:03:00]} 7. Bb5+ {[%clk 0:02:51]}  Nfd7 {[%clk 0:02:56]} 8. a4 {[%clk 0:02:48]}  Bg7 {[%clk 0:02:56]} 9. f4 {[%clk 0:02:47]}  O-O {[%clk 0:02:56]} 10. Nf3 {[%clk 0:02:47]}  Na6 {[%clk 0:02:56]} 11. O-O {[%clk 0:02:47]}  Nc7 {[%clk 0:02:57]} 12. Qe1 {[%clk 0:02:38]}  a6 {[%clk 0:02:53]} 13. Bd3 {[%clk 0:02:36]}  Rb8 {[%clk 0:02:54]} 14. Qg3 {[%clk 0:02:34]}  Re8 {[%clk 0:02:52]} 15. e5 {[%clk 0:02:14]}  dxe5 {[%clk 0:02:52]} 16. d6 {[%clk 0:02:13]}  Ne6 {[%clk 0:02:41]} 17. f5 {[%clk 0:01:56]}  Nd4 {[%clk 0:02:41]} 18. fxg6 {[%clk 0:01:50]}  hxg6 {[%clk 0:02:40]} 19. Ng5 {[%clk 0:01:42]}  Nf6 {[%clk 0:02:35]} 20. Nxf7 {[%clk 0:01:21]}  Kxf7 {[%clk 0:02:26]} 21. Qxg6+ {[%clk 0:01:20]}  Kg8 {[%clk 0:02:05]} 22. Bh6 {[%clk 0:01:12]}  Ne6 {[%clk 0:01:38]} 23. Bc4 {[%clk 0:01:07]}  Kh8 {[%clk 0:01:09]} 24. Bxe6 {[%clk 0:01:03]}  Bxh6 {[%clk 0:01:09]} 25. Qxh6+ {[%clk 0:01:00]}  Nh7 {[%clk 0:01:09]} 26. Rf7 {[%clk 0:00:55]} 1-0


[Site "https://www.chess.com"]

[Event "Titled Tuesday Blitz August 09 Early 2022"]
[White "Reprintsev, Alexander"]
[Black "Boyer, Mahel"]
[WhiteFideId "14100541"]
[BlackFideId "45102422"]
[WhiteElo "2108"]
[BlackElo "2454"]
[Result "1-0"]
[Round "07"]
[TimeControl "180+1"]
[Date "2022.08.09"]
[WhiteClock "0:01:09"]
[BlackClock "0:00:03"]

1. e4 {[%clk 0:03:00]}  e5 {[%clk 0:02:34]} 2. f4 {[%clk 0:02:58]}  exf4 {[%clk 0:02:32]} 3. Bc4 {[%clk 0:02:58]}  c6 {[%clk 0:02:31]} 4. Qe2 {[%clk 0:02:51]}  d5 {[%clk 0:02:29]} 5. exd5+ {[%clk 0:02:51]}  Be7 {[%clk 0:02:30]} 6. Nc3 {[%clk 0:02:44]}  Nf6 {[%clk 0:02:28]} 7. d4 {[%clk 0:02:42]}  O-O {[%clk 0:02:27]} 8. Bxf4 {[%clk 0:02:42]}  cxd5 {[%clk 0:02:22]} 9. Bb3 {[%clk 0:02:39]}  Bb4 {[%clk 0:02:19]} 10. Nf3 {[%clk 0:02:32]}  Nc6 {[%clk 0:02:13]} 11. O-O-O {[%clk 0:02:29]}  Bxc3 {[%clk 0:02:03]} 12. bxc3 {[%clk 0:02:29]}  Ne4 {[%clk 0:02:04]} 13. Rd3 {[%clk 0:02:28]}  Bf5 {[%clk 0:01:16]} 14. Re3 {[%clk 0:02:08]}  Rc8 {[%clk 0:01:06]} 15. Nd2 {[%clk 0:01:58]}  Na5 {[%clk 0:00:58]} 16. Nxe4 {[%clk 0:01:57]}  Bxe4 {[%clk 0:00:58]} 17. Kb2 {[%clk 0:01:32]}  Nc4+ {[%clk 0:00:52]} 18. Bxc4 {[%clk 0:01:31]}  Rxc4 {[%clk 0:00:53]} 19. Rxe4 {[%clk 0:01:31]}  Qb6+ {[%clk 0:00:49]} 20. Ka1 {[%clk 0:01:29]}  Rxc3 {[%clk 0:00:39]} 21. Rb1 {[%clk 0:01:26]}  Qc6 {[%clk 0:00:35]} 22. Re7 {[%clk 0:01:18]}  Rxc2 {[%clk 0:00:34]} 23. Qd3 {[%clk 0:01:16]}  Rc8 {[%clk 0:00:27]} 24. Rexb7 {[%clk 0:01:11]}  h6 {[%clk 0:00:11]} 25. Rb8 {[%clk 0:01:10]}  g6 {[%clk 0:00:03]} 26. Rxc8+ {[%clk 0:01:09]}  Kg7 {[%clk 0:00:03]} 1-0


[Site "https://www.chess.com"]

[Event "Titled Tuesday Blitz August 09 Early 2022"]
[White "Rose, Felix"]
[Black "Zenin, Dmitry"]
[WhiteFideId "5105722"]
[BlackFideId "4127897"]
[WhiteElo "2039"]
[BlackElo "2215"]
[Result "1-0"]
[Round "07"]
[TimeControl "180+1"]
[Date "2022.08.09"]
[WhiteClock "0:00:16"]
[BlackClock "0:00:10"]

1. e4 {[%clk 0:02:59]}  g6 {[%clk 0:02:58]} 2. d4 {[%clk 0:03:00]}  Bg7 {[%clk 0:02:58]} 3. Nf3 {[%clk 0:02:59]}  d6 {[%clk 0:02:58]} 4. Nc3 {[%clk 0:02:59]}  a6 {[%clk 0:02:58]} 5. a4 {[%clk 0:02:58]}  Nf6 {[%clk 0:02:57]} 6. h3 {[%clk 0:02:58]}  O-O {[%clk 0:02:56]} 7. Be3 {[%clk 0:02:58]}  Nc6 {[%clk 0:02:56]} 8. Be2 {[%clk 0:02:55]}  e5 {[%clk 0:02:55]} 9. dxe5 {[%clk 0:02:54]}  Nxe5 {[%clk 0:02:46]} 10. Nxe5 {[%clk 0:02:49]}  dxe5 {[%clk 0:02:46]} 11. Bc4 {[%clk 0:02:49]}  Qe7 {[%clk 0:02:36]} 12. O-O {[%clk 0:02:42]}  Be6 {[%clk 0:02:29]} 13. Qe2 {[%clk 0:02:37]}  Nh5 {[%clk 0:02:18]} 14. Rfd1 {[%clk 0:02:30]}  Nf4 {[%clk 0:02:15]} 15. Qf1 {[%clk 0:02:30]}  Rad8 {[%clk 0:02:01]} 16. a5 {[%clk 0:02:08]}  Qb4 {[%clk 0:01:17]} 17. Bxe6 {[%clk 0:02:03]}  Nxe6 {[%clk 0:01:16]} 18. Rxd8 {[%clk 0:01:40]}  Rxd8 {[%clk 0:01:15]} 19. Qb1 {[%clk 0:01:40]}  c6 {[%clk 0:01:04]} 20. Ra4 {[%clk 0:01:39]}  Qe7 {[%clk 0:01:03]} 21. Ne2 {[%clk 0:01:16]}  Qd6 {[%clk 0:00:57]} 22. g3 {[%clk 0:01:00]}  Qd1+ {[%clk 0:00:52]} 23. Qxd1 {[%clk 0:01:00]}  Rxd1+ {[%clk 0:00:52]} 24. Kg2 {[%clk 0:01:00]}  Re1 {[%clk 0:00:51]} 25. Kf3 {[%clk 0:00:54]}  Nd4+ {[%clk 0:00:50]} 26. Nxd4 {[%clk 0:00:49]}  exd4 {[%clk 0:00:50]} 27. Bxd4 {[%clk 0:00:49]}  Bf8 {[%clk 0:00:43]} 28. Bc3 {[%clk 0:00:30]}  Rc1 {[%clk 0:00:36]} 29. Rd4 {[%clk 0:00:28]}  f6 {[%clk 0:00:24]} 30. Rd7 {[%clk 0:00:20]}  Rxc2 {[%clk 0:00:21]} 31. Bxf6 {[%clk 0:00:19]}  Bc5 {[%clk 0:00:21]} 32. Rxb7 {[%clk 0:00:18]}  Rxf2+ {[%clk 0:00:20]} 33. Kg4 {[%clk 0:00:19]}  Be3 {[%clk 0:00:17]} 34. e5 {[%clk 0:00:18]}  h5+ {[%clk 0:00:17]} 35. Kh4 {[%clk 0:00:16]}  Re2 {[%clk 0:00:17]} 36. Rc7 {[%clk 0:00:13]}  Bd4 {[%clk 0:00:16]} 37. Rg7+ {[%clk 0:00:13]}  Kf8 {[%clk 0:00:15]} 38. Rxg6 {[%clk 0:00:14]}  Kf7 {[%clk 0:00:15]} 39. Kxh5 {[%clk 0:00:14]}  Bxe5 {[%clk 0:00:14]} 40. Bxe5 {[%clk 0:00:14]}  Rxe5+ {[%clk 0:00:14]} 41. Rg5 {[%clk 0:00:15]}  Re2 {[%clk 0:00:14]} 42. b4 {[%clk 0:00:15]}  Rc2 {[%clk 0:00:12]} 43. Rg4 {[%clk 0:00:16]}  Rb2 {[%clk 0:00:11]} 44. Kg5 {[%clk 0:00:16]}  Rf2 {[%clk 0:00:10]} 45. h4 {[%clk 0:00:16]} 1-0


[Site "https://www.chess.com"]

[Event "Titled Tuesday Blitz August 09 Early 2022"]
[White "Salem, A.R. Saleh"]
[Black "Nakamura, Hikaru"]
[WhiteFideId "9301348"]
[BlackFideId "2016192"]
[WhiteElo "2674"]
[BlackElo "2850"]
[Result "0-1"]
[Round "07"]
[TimeControl "180+1"]
[Date "2022.08.09"]
[WhiteClock "0:00:03"]
[BlackClock "0:00:32"]

1. d4 {[%clk 0:03:00]}  Nf6 {[%clk 0:02:59]} 2. c4 {[%clk 0:03:01]}  e6 {[%clk 0:03:00]} 3. Nc3 {[%clk 0:03:02]}  Bb4 {[%clk 0:02:59]} 4. a3 {[%clk 0:03:02]}  Bxc3+ {[%clk 0:02:59]} 5. bxc3 {[%clk 0:03:03]}  O-O {[%clk 0:03:00]} 6. f3 {[%clk 0:03:03]}  c5 {[%clk 0:02:58]} 7. e4 {[%clk 0:03:02]}  d6 {[%clk 0:02:58]} 8. Bd3 {[%clk 0:03:02]}  Nc6 {[%clk 0:02:54]} 9. Ne2 {[%clk 0:03:02]}  b6 {[%clk 0:02:51]} 10. Bg5 {[%clk 0:03:02]}  h6 {[%clk 0:02:51]} 11. Bh4 {[%clk 0:03:02]}  e5 {[%clk 0:02:36]} 12. O-O {[%clk 0:03:02]}  g5 {[%clk 0:02:34]} 13. Bf2 {[%clk 0:02:50]}  Nh5 {[%clk 0:02:32]} 14. g4 {[%clk 0:02:30]}  Ng7 {[%clk 0:02:15]} 15. h4 {[%clk 0:02:21]}  h5 {[%clk 0:01:49]} 16. d5 {[%clk 0:01:48]}  Ne7 {[%clk 0:01:39]} 17. hxg5 {[%clk 0:01:27]}  Ng6 {[%clk 0:01:37]} 18. Be3 {[%clk 0:01:18]}  hxg4 {[%clk 0:01:35]} 19. Qe1 {[%clk 0:01:10]}  Nh5 {[%clk 0:01:24]} 20. fxg4 {[%clk 0:00:41]}  Bxg4 {[%clk 0:01:24]} 21. Ra2 {[%clk 0:00:40]}  Kg7 {[%clk 0:00:51]} 22. Rf5 {[%clk 0:00:37]}  Rh8 {[%clk 0:00:49]} 23. Qf2 {[%clk 0:00:34]}  Qe7 {[%clk 0:00:41]} 24. Ra1 {[%clk 0:00:34]}  Bxe2 {[%clk 0:00:35]} 25. Bxe2 {[%clk 0:00:31]}  Nhf4 {[%clk 0:00:36]} 26. Bg4 {[%clk 0:00:09]}  Rh4 {[%clk 0:00:35]} 27. Qg3 {[%clk 0:00:07]}  Rah8 {[%clk 0:00:35]} 28. Kf2 {[%clk 0:00:02]}  Rh2+ {[%clk 0:00:33]} 29. Kf3 {[%clk 0:00:03]}  Nh4+ {[%clk 0:00:32]} 0-1


[Site "https://www.chess.com"]

[Event "Titled Tuesday Blitz August 09 Early 2022"]
[White "Samant Aditya S"]
[Black "Demchenko, Anton"]
[WhiteFideId "35080580"]
[BlackFideId "4160258"]
[WhiteElo "1968"]
[BlackElo "2539"]
[Result "0-1"]
[Round "07"]
[TimeControl "180+1"]
[Date "2022.08.09"]
[WhiteClock "0:00:12"]
[BlackClock "0:00:07"]

1. Nf3 {[%clk 0:03:00]}  Nf6 {[%clk 0:02:59]} 2. b3 {[%clk 0:03:00]}  g6 {[%clk 0:02:57]} 3. Bb2 {[%clk 0:03:01]}  Bg7 {[%clk 0:02:57]} 4. g3 {[%clk 0:03:01]}  d6 {[%clk 0:02:57]} 5. Bg2 {[%clk 0:03:02]}  e5 {[%clk 0:02:56]} 6. O-O {[%clk 0:03:02]}  O-O {[%clk 0:02:57]} 7. c4 {[%clk 0:03:02]}  a5 {[%clk 0:02:56]} 8. Nc3 {[%clk 0:03:02]}  Na6 {[%clk 0:02:57]} 9. a3 {[%clk 0:03:00]}  Bd7 {[%clk 0:02:49]} 10. d4 {[%clk 0:02:58]}  e4 {[%clk 0:02:34]} 11. Ne1 {[%clk 0:02:59]}  Re8 {[%clk 0:02:33]} 12. Nc2 {[%clk 0:02:55]}  c6 {[%clk 0:02:31]} 13. d5 {[%clk 0:02:47]}  Qe7 {[%clk 0:02:17]} 14. b4 {[%clk 0:02:23]}  axb4 {[%clk 0:02:13]} 15. axb4 {[%clk 0:02:24]}  c5 {[%clk 0:01:51]} 16. b5 {[%clk 0:02:07]}  Nb4 {[%clk 0:01:51]} 17. Ne3 {[%clk 0:02:02]}  Ng4 {[%clk 0:01:39]} 18. Nxg4 {[%clk 0:01:36]}  Bxg4 {[%clk 0:01:40]} 19. Rxa8 {[%clk 0:01:27]}  Rxa8 {[%clk 0:01:41]} 20. Qb3 {[%clk 0:01:27]}  e3 {[%clk 0:01:07]} 21. Ne4 {[%clk 0:00:44]}  exf2+ {[%clk 0:00:36]} 22. Rxf2 {[%clk 0:00:42]}  Bf5 {[%clk 0:00:36]} 23. Bxg7 {[%clk 0:00:36]}  Kxg7 {[%clk 0:00:37]} 24. Qc3+ {[%clk 0:00:32]}  f6 {[%clk 0:00:37]} 25. Nd2 {[%clk 0:00:06]}  Ra2 {[%clk 0:00:37]} 26. e4 {[%clk 0:00:06]}  Bd7 {[%clk 0:00:28]} 27. h4 {[%clk 0:00:06]}  Rc2 {[%clk 0:00:18]} 28. Qe3 {[%clk 0:00:06]}  Qe5 {[%clk 0:00:18]} 29. Qf4 {[%clk 0:00:05]}  Qxf4 {[%clk 0:00:16]} 30. gxf4 {[%clk 0:00:05]}  Nd3 {[%clk 0:00:17]} 31. Re2 {[%clk 0:00:03]}  Nxf4 {[%clk 0:00:18]} 32. Rf2 {[%clk 0:00:03]}  Nd3 {[%clk 0:00:18]} 33. Re2 {[%clk 0:00:04]}  h5 {[%clk 0:00:10]} 34. Bf3 {[%clk 0:00:03]}  Ne5 {[%clk 0:00:10]} 35. Kf2 {[%clk 0:00:02]}  Nxc4 {[%clk 0:00:08]} 36. Nxc4 {[%clk 0:00:02]}  Rxc4 {[%clk 0:00:09]} 37. Ra2 {[%clk 0:00:03]}  Bxb5 {[%clk 0:00:10]} 38. Ra7 {[%clk 0:00:04]}  Ba6 {[%clk 0:00:07]} 39. Ra8 {[%clk 0:00:04]}  Rc2+ {[%clk 0:00:07]} 40. Kg3 {[%clk 0:00:05]}  c4 {[%clk 0:00:05]} 41. Rd8 {[%clk 0:00:04]}  c3 {[%clk 0:00:04]} 42. Rd7+ {[%clk 0:00:05]}  Kf8 {[%clk 0:00:03]} 43. Rxd6 {[%clk 0:00:06]}  Ke7 {[%clk 0:00:02]} 44. Re6+ {[%clk 0:00:06]}  Kf7 {[%clk 0:00:02]} 45. e5 {[%clk 0:00:06]}  fxe5 {[%clk 0:00:02]} 46. Be4 {[%clk 0:00:07]}  Rd2 {[%clk 0:00:02]} 47. Bxg6+ {[%clk 0:00:06]}  Kg7 {[%clk 0:00:03]} 48. Be4 {[%clk 0:00:04]}  c2 {[%clk 0:00:03]} 49. Re7+ {[%clk 0:00:04]}  Kf6 {[%clk 0:00:03]} 50. Rc7 {[%clk 0:00:05]}  Bd3 {[%clk 0:00:04]} 51. Kf3 {[%clk 0:00:02]}  Bxe4+ {[%clk 0:00:02]} 52. Kxe4 {[%clk 0:00:03]}  Rd4+ {[%clk 0:00:03]} 53. Ke3 {[%clk 0:00:03]}  Rxd5 {[%clk 0:00:03]} 54. Rxc2 {[%clk 0:00:03]}  Kf5 {[%clk 0:00:03]} 55. Rb2 {[%clk 0:00:04]}  b5 {[%clk 0:00:03]} 56. Rf2+ {[%clk 0:00:04]}  Ke6 {[%clk 0:00:04]} 57. Ke4 {[%clk 0:00:05]}  Rd4+ {[%clk 0:00:03]} 58. Ke3 {[%clk 0:00:06]}  Rxh4 {[%clk 0:00:04]} 59. Ra2 {[%clk 0:00:07]}  b4 {[%clk 0:00:05]} 60. Ra6+ {[%clk 0:00:07]}  Kf5 {[%clk 0:00:05]} 61. Ra8 {[%clk 0:00:07]}  Rh3+ {[%clk 0:00:06]} 62. Ke2 {[%clk 0:00:06]}  b3 {[%clk 0:00:06]} 63. Rb8 {[%clk 0:00:07]}  Ke4 {[%clk 0:00:06]} 64. Rb4+ {[%clk 0:00:08]}  Kf5 {[%clk 0:00:07]} 65. Rb5 {[%clk 0:00:09]}  h4 {[%clk 0:00:07]} 66. Rb8 {[%clk 0:00:09]}  Rg3 {[%clk 0:00:07]} 67. Rh8 {[%clk 0:00:09]}  h3 {[%clk 0:00:07]} 68. Rf8+ {[%clk 0:00:10]}  Ke4 {[%clk 0:00:07]} 69. Rb8 {[%clk 0:00:11]}  Rg2+ {[%clk 0:00:06]} 70. Kf1 {[%clk 0:00:11]}  b2 {[%clk 0:00:07]} 71. Rb4+ {[%clk 0:00:11]}  Kf5 {[%clk 0:00:07]} 72. Rb3 {[%clk 0:00:12]}  Rc2 {[%clk 0:00:07]} 73. Kg1 {[%clk 0:00:12]}  Rc1+ {[%clk 0:00:07]} 0-1


[Site "https://www.chess.com"]